[Event "Titled Tuesday Blitz December 06 Early 2022"]
[White "Yeremyan, Alen"]
[Black "Drygalov, Sergey"]
[WhiteFideId "13308998"]
[BlackFideId "24171743"]
[WhiteElo "2159"]
[BlackElo "2533"]
[Result "1-0"]
[Round "04"]
[TimeControl "180+1"]
[Date "2022.12.06"]
[WhiteClock "0:00:12"]
[BlackClock "0:00:04"]

1. g3 {[%clk 0:03:00]}  d5 {[%clk 0:02:55]} 2. Bg2 {[%clk 0:03:01]}  Nf6 {[%clk 0:02:54]} 3. c4 {[%clk 0:03:00]}  dxc4 {[%clk 0:02:51]} 4. Qa4+ {[%clk 0:03:00]}  c6 {[%clk 0:02:52]} 5. Qxc4 {[%clk 0:03:01]}  e5 {[%clk 0:02:52]} 6. Nf3 {[%clk 0:03:00]}  Be6 {[%clk 0:02:52]} 7. Qc2 {[%clk 0:03:00]}  Bd6 {[%clk 0:02:51]} 8. O-O {[%clk 0:03:00]}  O-O {[%clk 0:02:51]} 9. d4 {[%clk 0:03:01]}  Nbd7 {[%clk 0:02:48]} 10. Rd1 {[%clk 0:02:58]}  Qe7 {[%clk 0:02:26]} 11. Nc3 {[%clk 0:02:55]}  Rac8 {[%clk 0:02:25]} 12. Ng5 {[%clk 0:02:55]}  exd4 {[%clk 0:02:16]} 13. Nxe6 {[%clk 0:02:50]}  Qxe6 {[%clk 0:02:13]} 14. Rxd4 {[%clk 0:02:50]}  Bc5 {[%clk 0:02:09]} 15. Rd1 {[%clk 0:02:50]}  Rfe8 {[%clk 0:02:05]} 16. e3 {[%clk 0:02:49]}  Ne5 {[%clk 0:02:01]} 17. Ne4 {[%clk 0:02:46]}  Bf8 {[%clk 0:01:50]} 18. b3 {[%clk 0:02:38]}  Nxe4 {[%clk 0:01:40]} 19. Bxe4 {[%clk 0:02:31]}  g6 {[%clk 0:01:40]} 20. Bb2 {[%clk 0:02:30]}  Bg7 {[%clk 0:01:40]} 21. Bg2 {[%clk 0:02:28]}  h5 {[%clk 0:01:37]} 22. Bxe5 {[%clk 0:02:26]}  Bxe5 {[%clk 0:01:36]} 23. Rab1 {[%clk 0:02:26]}  h4 {[%clk 0:01:35]} 24. Rd3 {[%clk 0:02:22]}  Rcd8 {[%clk 0:01:27]} 25. Rbd1 {[%clk 0:02:21]}  Rxd3 {[%clk 0:01:26]} 26. Qxd3 {[%clk 0:02:22]}  Bf6 {[%clk 0:01:24]} 27. Qc4 {[%clk 0:02:16]}  Qf5 {[%clk 0:01:14]} 28. e4 {[%clk 0:02:10]}  Qg4 {[%clk 0:01:08]} 29. f3 {[%clk 0:02:10]}  Qc8 {[%clk 0:01:06]} 30. Rd6 {[%clk 0:01:55]}  Kg7 {[%clk 0:00:45]} 31. f4 {[%clk 0:01:47]}  hxg3 {[%clk 0:00:46]} 32. hxg3 {[%clk 0:01:48]}  Qg4 {[%clk 0:00:46]} 33. e5 {[%clk 0:01:46]}  Be7 {[%clk 0:00:43]} 34. Rd3 {[%clk 0:01:46]}  Rd8 {[%clk 0:00:43]} 35. Rxd8 {[%clk 0:01:37]}  Bxd8 {[%clk 0:00:43]} 36. Qd3 {[%clk 0:01:34]}  Bb6+ {[%clk 0:00:42]} 37. Kf1 {[%clk 0:01:34]}  Qh5 {[%clk 0:00:25]} 38. Qf3 {[%clk 0:01:12]}  Qh2 {[%clk 0:00:23]} 39. Ke2 {[%clk 0:01:12]}  Qg1 {[%clk 0:00:23]} 40. f5 {[%clk 0:00:59]}  Qd4 {[%clk 0:00:23]} 41. fxg6 {[%clk 0:00:45]}  Qxe5+ {[%clk 0:00:21]} 42. Qe4 {[%clk 0:00:46]}  Qb2+ {[%clk 0:00:20]} 43. Kf3 {[%clk 0:00:46]}  Qf2+ {[%clk 0:00:19]} 44. Kg4 {[%clk 0:00:47]}  Bc7 {[%clk 0:00:14]} 45. gxf7 {[%clk 0:00:24]}  Qxg3+ {[%clk 0:00:14]} 46. Kh5 {[%clk 0:00:25]}  Bf4 {[%clk 0:00:14]} 47. Qf5 {[%clk 0:00:15]}  Kf8 {[%clk 0:00:14]} 48. Bh3 {[%clk 0:00:11]}  Be3 {[%clk 0:00:08]} 49. Qg4 {[%clk 0:00:07]}  Qe5+ {[%clk 0:00:07]} 50. Qf5 {[%clk 0:00:07]}  Qh8+ {[%clk 0:00:06]} 51. Kg4 {[%clk 0:00:07]}  Qd4+ {[%clk 0:00:07]} 52. Kf3 {[%clk 0:00:08]}  Bh6 {[%clk 0:00:06]} 53. Bg4 {[%clk 0:00:07]}  Qe3+ {[%clk 0:00:06]} 54. Kg2 {[%clk 0:00:07]}  Qd2+ {[%clk 0:00:05]} 55. Qf2 {[%clk 0:00:08]}  Qd5+ {[%clk 0:00:05]} 56. Qf3 {[%clk 0:00:08]}  Qd2+ {[%clk 0:00:06]} 57. Qf2 {[%clk 0:00:09]}  Qd4 {[%clk 0:00:06]} 58. Qxd4 {[%clk 0:00:08]}  Kxf7 {[%clk 0:00:02]} 59. Qe5 {[%clk 0:00:08]}  Kg6 {[%clk 0:00:02]} 60. Bh5+ {[%clk 0:00:09]}  Kh7 {[%clk 0:00:02]} 61. Qf6 {[%clk 0:00:10]}  Bg7 {[%clk 0:00:02]} 62. Qg6+ {[%clk 0:00:11]}  Kh8 {[%clk 0:00:03]} 63. Bg4 {[%clk 0:00:11]}  Kg8 {[%clk 0:00:03]} 64. Be6+ {[%clk 0:00:12]}  Kh8 {[%clk 0:00:03]} 65. Kg3 {[%clk 0:00:12]}  Bh6 {[%clk 0:00:04]} 66. Qxh6# {[%clk 0:00:12]} 1-0


[Site "https://www.chess.com"]

[Event "Titled Tuesday Blitz December 06 Early 2022"]
[White "Zhigalko, Sergei"]
[Black "Kim, Sergey"]
[WhiteFideId "13502956"]
[BlackFideId "13700570"]
[WhiteElo "2662"]
[BlackElo "2625"]
[Result "1-0"]
[Round "04"]
[TimeControl "180+1"]
[Date "2022.12.06"]
[WhiteClock "0:00:06"]
[BlackClock "0:01:24"]

1. e4 {[%clk 0:03:00]}  e5 {[%clk 0:02:59]} 2. Nf3 {[%clk 0:03:01]}  Nc6 {[%clk 0:03:00]} 3. Bc4 {[%clk 0:03:01]}  Bc5 {[%clk 0:02:59]} 4. b4 {[%clk 0:03:02]}  Bxb4 {[%clk 0:02:58]} 5. c3 {[%clk 0:03:02]}  Ba5 {[%clk 0:02:59]} 6. d4 {[%clk 0:03:02]}  d6 {[%clk 0:02:59]} 7. Qb3 {[%clk 0:03:01]}  Qd7 {[%clk 0:02:59]} 8. O-O {[%clk 0:03:01]}  Bb6 {[%clk 0:02:58]} 9. Nbd2 {[%clk 0:03:02]}  Na5 {[%clk 0:02:57]} 10. Qc2 {[%clk 0:03:02]}  Nxc4 {[%clk 0:02:57]} 11. Nxc4 {[%clk 0:03:03]}  exd4 {[%clk 0:02:54]} 12. cxd4 {[%clk 0:03:02]}  Ne7 {[%clk 0:02:53]} 13. a4 {[%clk 0:03:03]}  c6 {[%clk 0:02:50]} 14. e5 {[%clk 0:03:02]}  Bc7 {[%clk 0:02:36]} 15. exd6 {[%clk 0:02:52]}  Bxd6 {[%clk 0:02:36]} 16. Nxd6+ {[%clk 0:01:54]}  Qxd6 {[%clk 0:02:35]} 17. Ba3 {[%clk 0:01:54]}  Qg6 {[%clk 0:02:34]} 18. Qb3 {[%clk 0:01:44]}  b6 {[%clk 0:02:12]} 19. Rfe1 {[%clk 0:01:31]}  Be6 {[%clk 0:02:11]} 20. Qb4 {[%clk 0:01:31]}  Qf6 {[%clk 0:01:43]} 21. a5 {[%clk 0:01:29]}  b5 {[%clk 0:01:37]} 22. Nd2 {[%clk 0:00:57]}  Rd8 {[%clk 0:01:30]} 23. Ne4 {[%clk 0:00:56]}  Qh4 {[%clk 0:01:26]} 24. g3 {[%clk 0:00:47]}  Nd5 {[%clk 0:01:26]} 25. gxh4 {[%clk 0:00:10]}  Nxb4 {[%clk 0:01:25]} 26. Bxb4 {[%clk 0:00:10]}  Rxd4 {[%clk 0:01:24]} 27. Bc3 {[%clk 0:00:06]} 1-0


[Site "https://www.chess.com"]

[Event "Titled Tuesday Blitz December 06 Early 2022"]
[White "monkins"]
[Black "Lehtosaari, Mauri"]
[BlackFideId "501999"]
[WhiteElo "2266"]
[BlackElo "2503"]
[Result "0-1"]
[Round "04"]
[TimeControl "180+1"]
[Date "2022.12.07"]
[WhiteClock "0:00:01"]
[BlackClock "0:00:12"]

1. Nf3 {[%clk 0:03:00]}  d5 {[%clk 0:03:00]} 2. g3 {[%clk 0:03:00]}  Nf6 {[%clk 0:03:00]} 3. Bg2 {[%clk 0:03:00]}  c6 {[%clk 0:03:00]} 4. d3 {[%clk 0:03:00]}  Bg4 {[%clk 0:03:01]} 5. O-O {[%clk 0:03:00]}  e6 {[%clk 0:02:54]} 6. Nbd2 {[%clk 0:02:59]}  Bc5 {[%clk 0:02:53]} 7. c4 {[%clk 0:02:59]}  a5 {[%clk 0:02:45]} 8. d4 {[%clk 0:02:53]}  Bb6 {[%clk 0:02:45]} 9. b3 {[%clk 0:02:51]}  O-O {[%clk 0:02:29]} 10. Bb2 {[%clk 0:02:51]}  a4 {[%clk 0:02:26]} 11. bxa4 {[%clk 0:02:26]}  Nbd7 {[%clk 0:02:09]} 12. c5 {[%clk 0:02:19]}  Bc7 {[%clk 0:02:07]} 13. Qb3 {[%clk 0:02:15]}  Qb8 {[%clk 0:02:05]} 14. Rfe1 {[%clk 0:02:07]}  Qa7 {[%clk 0:02:04]} 15. e4 {[%clk 0:01:59]}  dxe4 {[%clk 0:01:58]} 16. Nxe4 {[%clk 0:02:00]}  Nxe4 {[%clk 0:01:57]} 17. Rxe4 {[%clk 0:02:00]}  Nf6 {[%clk 0:01:56]} 18. Re2 {[%clk 0:01:24]}  Rfb8 {[%clk 0:01:38]} 19. h3 {[%clk 0:01:21]}  Bxf3 {[%clk 0:01:33]} 20. Qxf3 {[%clk 0:01:18]}  Qxa4 {[%clk 0:01:31]} 21. g4 {[%clk 0:01:03]}  Nd5 {[%clk 0:01:26]} 22. Qe4 {[%clk 0:00:55]}  Qc4 {[%clk 0:01:11]} 23. Rc2 {[%clk 0:00:51]}  Qa6 {[%clk 0:01:03]} 24. Bf1 {[%clk 0:00:48]}  Qa4 {[%clk 0:00:58]} 25. Rc4 {[%clk 0:00:41]}  Qa5 {[%clk 0:00:53]} 26. Bd3 {[%clk 0:00:40]}  g6 {[%clk 0:00:48]} 27. h4 {[%clk 0:00:40]}  Qd2 {[%clk 0:00:44]} 28. Rc2 {[%clk 0:00:38]}  Qf4 {[%clk 0:00:40]} 29. a3 {[%clk 0:00:29]}  Qh2+ {[%clk 0:00:29]} 30. Kf1 {[%clk 0:00:28]}  Qxh4 {[%clk 0:00:30]} 31. Bc1 {[%clk 0:00:20]}  Qf6 {[%clk 0:00:27]} 32. Be3 {[%clk 0:00:17]}  Bf4 {[%clk 0:00:23]} 33. Ke2 {[%clk 0:00:16]}  Ra4 {[%clk 0:00:21]} 34. Rh1 {[%clk 0:00:11]}  Rba8 {[%clk 0:00:18]} 35. Qf3 {[%clk 0:00:10]}  Bxe3 {[%clk 0:00:15]} 36. fxe3 {[%clk 0:00:08]}  Qxf3+ {[%clk 0:00:15]} 37. Kxf3 {[%clk 0:00:09]}  Rxa3 {[%clk 0:00:16]} 38. Rd2 {[%clk 0:00:06]}  Rc3 {[%clk 0:00:16]} 39. Rhd1 {[%clk 0:00:03]}  Raa3 {[%clk 0:00:15]} 40. g5 {[%clk 0:00:04]}  Kg7 {[%clk 0:00:15]} 41. Kf2 {[%clk 0:00:02]}  h6 {[%clk 0:00:14]} 42. gxh6+ {[%clk 0:00:02]}  Kxh6 {[%clk 0:00:15]} 43. Be4 {[%clk 0:00:01]}  Nxe3 {[%clk 0:00:12]} 0-1


[Site "https://www.chess.com"]

[Event "Titled Tuesday Blitz December 06 Early 2022"]
[White "Abasov, Nijat"]
[Black "Sagita, Catur Adi"]
[WhiteFideId "13402960"]
[BlackFideId "7104618"]
[WhiteElo "2546"]
[BlackElo "2232"]
[Result "1-0"]
[Round "05"]
[TimeControl "180+1"]
[Date "2022.12.07"]
[WhiteClock "0:00:05"]
[BlackClock "0:00:05"]

1. Nf3 {[%clk 0:02:56]}  Nf6 {[%clk 0:02:53]} 2. e3 {[%clk 0:02:57]}  g6 {[%clk 0:02:52]} 3. c4 {[%clk 0:02:58]}  Bg7 {[%clk 0:02:52]} 4. b3 {[%clk 0:02:57]}  O-O {[%clk 0:02:53]} 5. Bb2 {[%clk 0:02:58]}  c5 {[%clk 0:02:50]} 6. Be2 {[%clk 0:02:53]}  Nc6 {[%clk 0:02:50]} 7. O-O {[%clk 0:02:52]}  d5 {[%clk 0:02:49]} 8. cxd5 {[%clk 0:02:53]}  Nxd5 {[%clk 0:02:50]} 9. Bxg7 {[%clk 0:02:52]}  Kxg7 {[%clk 0:02:50]} 10. d4 {[%clk 0:02:53]}  cxd4 {[%clk 0:02:50]} 11. Nxd4 {[%clk 0:02:54]}  Nxd4 {[%clk 0:02:50]} 12. Qxd4+ {[%clk 0:02:54]}  Nf6 {[%clk 0:02:51]} 13. Qb2 {[%clk 0:02:52]}  b6 {[%clk 0:02:48]} 14. Bf3 {[%clk 0:02:48]}  Rb8 {[%clk 0:02:46]} 15. Rd1 {[%clk 0:02:49]}  Qc7 {[%clk 0:02:46]} 16. Na3 {[%clk 0:02:48]}  Qc5 {[%clk 0:02:25]} 17. Rac1 {[%clk 0:02:43]}  Qg5 {[%clk 0:02:25]} 18. Rc7 {[%clk 0:02:26]}  Bg4 {[%clk 0:02:24]} 19. Bxg4 {[%clk 0:02:24]}  Qxg4 {[%clk 0:02:25]} 20. Rd4 {[%clk 0:02:24]}  Qe6 {[%clk 0:02:20]} 21. Rxa7 {[%clk 0:02:21]}  b5 {[%clk 0:02:19]} 22. Nc2 {[%clk 0:02:19]}  Rfc8 {[%clk 0:02:16]} 23. Ne1 {[%clk 0:02:14]}  Rc6 {[%clk 0:02:08]} 24. Rdd7 {[%clk 0:01:44]}  Re8 {[%clk 0:01:35]} 25. h3 {[%clk 0:01:38]}  h5 {[%clk 0:01:31]} 26. Nf3 {[%clk 0:01:36]}  Qe4 {[%clk 0:01:19]} 27. Ng5 {[%clk 0:01:12]}  Qf5 {[%clk 0:01:09]} 28. Nf3 {[%clk 0:00:52]}  Rc2 {[%clk 0:00:54]} 29. Qd4 {[%clk 0:00:52]}  Qe6 {[%clk 0:00:35]} 30. Ng5 {[%clk 0:00:45]}  Qf5 {[%clk 0:00:32]} 31. Nf3 {[%clk 0:00:45]}  Qe6 {[%clk 0:00:32]} 32. Rdc7 {[%clk 0:00:39]}  Rxc7 {[%clk 0:00:29]} 33. Rxc7 {[%clk 0:00:40]}  Ra8 {[%clk 0:00:26]} 34. Rc2 {[%clk 0:00:27]}  Qf5 {[%clk 0:00:25]} 35. Qb2 {[%clk 0:00:21]}  Kh6 {[%clk 0:00:23]} 36. Nd4 {[%clk 0:00:21]}  Qd3 {[%clk 0:00:23]} 37. Rd2 {[%clk 0:00:21]}  Qe4 {[%clk 0:00:22]} 38. Nxb5 {[%clk 0:00:21]}  g5 {[%clk 0:00:19]} 39. a4 {[%clk 0:00:16]}  g4 {[%clk 0:00:18]} 40. Qd4 {[%clk 0:00:14]}  Qb1+ {[%clk 0:00:17]} 41. Kh2 {[%clk 0:00:15]}  Qxb3 {[%clk 0:00:18]} 42. Qf4+ {[%clk 0:00:16]}  Kg6 {[%clk 0:00:18]} 43. Rd4 {[%clk 0:00:13]}  Qb1 {[%clk 0:00:13]} 44. Nc3 {[%clk 0:00:12]}  Qb8 {[%clk 0:00:10]} 45. Qxb8 {[%clk 0:00:10]}  Rxb8 {[%clk 0:00:10]} 46. a5 {[%clk 0:00:10]}  Ra8 {[%clk 0:00:11]} 47. Ra4 {[%clk 0:00:10]}  Ra6 {[%clk 0:00:10]} 48. Kg3 {[%clk 0:00:10]}  gxh3 {[%clk 0:00:10]} 49. gxh3 {[%clk 0:00:11]}  Nd7 {[%clk 0:00:10]} 50. Nd5 {[%clk 0:00:08]}  Nc5 {[%clk 0:00:10]} 51. Ra3 {[%clk 0:00:07]}  e6 {[%clk 0:00:10]} 52. Nb4 {[%clk 0:00:06]}  Ra8 {[%clk 0:00:10]} 53. a6 {[%clk 0:00:06]}  Ra7 {[%clk 0:00:10]} 54. Ra5 {[%clk 0:00:06]}  Nd7 {[%clk 0:00:09]} 55. Nc6 {[%clk 0:00:06]}  Ra8 {[%clk 0:00:10]} 56. a7 {[%clk 0:00:06]}  Kf6 {[%clk 0:00:08]} 57. Rb5 {[%clk 0:00:06]}  h4+ {[%clk 0:00:05]} 58. Kxh4 {[%clk 0:00:05]} 1-0


[Site "https://www.chess.com"]

[Event "Titled Tuesday Blitz December 06 Early 2022"]
[White "Bacrot, Etienne"]
[Black "Hristodoulou, Panagiotis"]
[WhiteFideId "605506"]
[BlackFideId "4214340"]
[WhiteElo "2667"]
[BlackElo "2272"]
[Result "0-1"]
[Round "05"]
[TimeControl "180+1"]
[Date "2022.12.06"]
[WhiteClock "0:00:04"]
[BlackClock "0:00:05"]

1. e4 {[%clk 0:03:00]}  e5 {[%clk 0:02:59]} 2. Nf3 {[%clk 0:03:00]}  Nc6 {[%clk 0:02:58]} 3. Bb5 {[%clk 0:03:00]}  g6 {[%clk 0:02:58]} 4. O-O {[%clk 0:02:59]}  Bg7 {[%clk 0:02:57]} 5. Re1 {[%clk 0:02:59]}  Nge7 {[%clk 0:02:57]} 6. c3 {[%clk 0:02:59]}  a6 {[%clk 0:02:57]} 7. Ba4 {[%clk 0:02:59]}  O-O {[%clk 0:02:56]} 8. d4 {[%clk 0:03:00]}  exd4 {[%clk 0:02:56]} 9. cxd4 {[%clk 0:03:01]}  b5 {[%clk 0:02:56]} 10. Bb3 {[%clk 0:02:59]}  d6 {[%clk 0:02:56]} 11. Nc3 {[%clk 0:02:58]}  Bg4 {[%clk 0:02:52]} 12. Be3 {[%clk 0:02:54]}  Bxf3 {[%clk 0:02:50]} 13. gxf3 {[%clk 0:02:54]}  Na5 {[%clk 0:02:45]} 14. Bg5 {[%clk 0:02:39]}  h6 {[%clk 0:02:41]} 15. Bh4 {[%clk 0:02:38]}  Qd7 {[%clk 0:02:39]} 16. Rc1 {[%clk 0:02:30]}  Nxb3 {[%clk 0:02:30]} 17. axb3 {[%clk 0:02:23]}  Rac8 {[%clk 0:02:19]} 18. f4 {[%clk 0:02:18]}  Nc6 {[%clk 0:01:52]} 19. Nd5 {[%clk 0:02:09]}  Nxd4 {[%clk 0:00:50]} 20. Ne7+ {[%clk 0:02:01]}  Kh7 {[%clk 0:00:48]} 21. Nxc8 {[%clk 0:02:01]}  Rxc8 {[%clk 0:00:42]} 22. Bg3 {[%clk 0:01:54]}  c5 {[%clk 0:00:41]} 23. Re3 {[%clk 0:01:51]}  b4 {[%clk 0:00:36]} 24. Qd3 {[%clk 0:01:48]}  a5 {[%clk 0:00:25]} 25. Ra1 {[%clk 0:01:38]}  d5 {[%clk 0:00:16]} 26. exd5 {[%clk 0:01:30]}  Qxd5 {[%clk 0:00:15]} 27. Rxa5 {[%clk 0:01:30]}  Qh5 {[%clk 0:00:07]} 28. Kg2 {[%clk 0:01:07]}  Qd5+ {[%clk 0:00:06]} 29. Qe4 {[%clk 0:01:05]}  Qd7 {[%clk 0:00:06]} 30. Ra6 {[%clk 0:00:49]}  h5 {[%clk 0:00:06]} 31. Kg1 {[%clk 0:00:28]}  Nf5 {[%clk 0:00:06]} 32. Rd3 {[%clk 0:00:24]}  Bd4 {[%clk 0:00:06]} 33. Rf6 {[%clk 0:00:13]}  Re8 {[%clk 0:00:05]} 34. Qf3 {[%clk 0:00:13]}  Qe7 {[%clk 0:00:04]} 35. Rxf5 {[%clk 0:00:13]}  gxf5 {[%clk 0:00:04]} 36. Qxh5+ {[%clk 0:00:13]}  Kg8 {[%clk 0:00:05]} 37. Bh4 {[%clk 0:00:11]}  Qe1+ {[%clk 0:00:05]} 38. Kg2 {[%clk 0:00:12]}  Qe4+ {[%clk 0:00:05]} 39. Rf3 {[%clk 0:00:12]}  Re6 {[%clk 0:00:04]} 40. Bg5 {[%clk 0:00:12]}  Rg6 {[%clk 0:00:04]} 41. h3 {[%clk 0:00:09]}  Kg7 {[%clk 0:00:04]} 42. Kh2 {[%clk 0:00:08]}  f6 {[%clk 0:00:05]} 43. Bh4 {[%clk 0:00:06]}  Qe1 {[%clk 0:00:05]} 44. Bg3 {[%clk 0:00:06]}  Qe2 {[%clk 0:00:04]} 45. Kg2 {[%clk 0:00:04]}  Qe4 {[%clk 0:00:02]} 46. Kh2 {[%clk 0:00:04]}  Rh6 {[%clk 0:00:02]} 47. Re3 {[%clk 0:00:02]}  Rxh5 {[%clk 0:00:02]} 48. Rxe4 {[%clk 0:00:02]}  fxe4 {[%clk 0:00:03]} 49. f5 {[%clk 0:00:03]}  Rxf5 {[%clk 0:00:03]} 50. Kg2 {[%clk 0:00:02]}  Rf3 {[%clk 0:00:04]} 51. Kf1 {[%clk 0:00:03]}  f5 {[%clk 0:00:04]} 52. Ke2 {[%clk 0:00:04]}  Kf6 {[%clk 0:00:05]} 0-1


[Site "https://www.chess.com"]

[Event "Titled Tuesday Blitz December 06 Early 2022"]
[White "Bambino Filho, Antonio Carlos"]
[Black "Dzhaparov, Medet"]
[WhiteFideId "2113163"]
[BlackFideId "13803689"]
[WhiteElo "2376"]
[BlackElo "1702"]
[Result "1-0"]
[Round "05"]
[TimeControl "180+1"]
[Date "2022.12.07"]
[WhiteClock "0:01:52"]
[BlackClock "0:01:22"]

1. d4 {[%clk 0:03:00]}  Nf6 {[%clk 0:02:41]} 2. Nc3 {[%clk 0:02:59]}  g6 {[%clk 0:02:38]} 3. e4 {[%clk 0:02:58]}  Bg7 {[%clk 0:02:38]} 4. Be3 {[%clk 0:02:59]}  d5 {[%clk 0:02:37]} 5. e5 {[%clk 0:02:53]}  Ng4 {[%clk 0:02:34]} 6. Bf4 {[%clk 0:02:53]}  O-O {[%clk 0:02:33]} 7. Qd2 {[%clk 0:02:52]}  Nc6 {[%clk 0:02:32]} 8. h3 {[%clk 0:02:50]}  Ngxe5 {[%clk 0:02:29]} 9. dxe5 {[%clk 0:02:49]}  Nxe5 {[%clk 0:02:30]} 10. Qxd5 {[%clk 0:02:45]}  Bf5 {[%clk 0:02:25]} 11. O-O-O {[%clk 0:02:40]}  c6 {[%clk 0:02:17]} 12. Qxd8 {[%clk 0:02:37]}  Rfxd8 {[%clk 0:02:18]} 13. Rxd8+ {[%clk 0:02:29]}  Rxd8 {[%clk 0:02:19]} 14. Be2 {[%clk 0:02:30]}  b5 {[%clk 0:02:07]} 15. Nf3 {[%clk 0:02:25]}  Nd7 {[%clk 0:01:57]} 16. Rd1 {[%clk 0:02:19]}  Kf8 {[%clk 0:01:52]} 17. Nd4 {[%clk 0:02:19]}  Bxd4 {[%clk 0:01:49]} 18. Rxd4 {[%clk 0:02:19]}  Ke8 {[%clk 0:01:49]} 19. Rd1 {[%clk 0:02:13]}  Nb6 {[%clk 0:01:44]} 20. Be3 {[%clk 0:02:06]}  Rxd1+ {[%clk 0:01:41]} 21. Bxd1 {[%clk 0:02:07]}  Kd7 {[%clk 0:01:29]} 22. b3 {[%clk 0:01:56]}  Kc7 {[%clk 0:01:27]} 23. Bf3 {[%clk 0:01:52]}  e6 {[%clk 0:01:25]} 24. Ne2 {[%clk 0:01:52]}  Kb7 {[%clk 0:01:22]} 25. g4 {[%clk 0:01:52]} 1-0


[Site "https://www.chess.com"]

[Event "Titled Tuesday Blitz December 06 Early 2022"]
[White "Battlecruiser_Operational"]
[Black "Sztokbant, Bernardo Vainzoff"]
[BlackFideId "2115956"]
[WhiteElo "2239"]
[BlackElo "2222"]
[Result "1-0"]
[Round "05"]
[TimeControl "180+1"]
[Date "2022.12.07"]
[WhiteClock "0:00:06"]
[BlackClock "0:00:02"]

1. d4 {[%clk 0:02:59]}  d5 {[%clk 0:02:59]} 2. c4 {[%clk 0:02:58]}  c6 {[%clk 0:03:00]} 3. Nc3 {[%clk 0:02:58]}  e6 {[%clk 0:02:59]} 4. e3 {[%clk 0:02:57]}  Nf6 {[%clk 0:02:59]} 5. Nf3 {[%clk 0:02:55]}  Bd6 {[%clk 0:02:58]} 6. Qc2 {[%clk 0:02:55]}  O-O {[%clk 0:02:58]} 7. Bd2 {[%clk 0:02:54]}  b6 {[%clk 0:02:57]} 8. O-O-O {[%clk 0:02:51]}  Nbd7 {[%clk 0:02:55]} 9. e4 {[%clk 0:02:49]}  dxe4 {[%clk 0:02:54]} 10. Nxe4 {[%clk 0:02:50]}  Nxe4 {[%clk 0:02:48]} 11. Qxe4 {[%clk 0:02:51]}  Bb7 {[%clk 0:02:40]} 12. Bd3 {[%clk 0:02:50]}  Nf6 {[%clk 0:02:40]} 13. Qh4 {[%clk 0:02:50]}  c5 {[%clk 0:02:32]} 14. dxc5 {[%clk 0:02:34]}  bxc5 {[%clk 0:02:28]} 15. Bc3 {[%clk 0:02:29]}  h6 {[%clk 0:02:23]} 16. Ne5 {[%clk 0:02:21]}  Qc7 {[%clk 0:02:19]} 17. f4 {[%clk 0:02:18]}  Ne4 {[%clk 0:02:15]} 18. Bxe4 {[%clk 0:02:02]}  Bxe4 {[%clk 0:02:16]} 19. Rhe1 {[%clk 0:02:00]}  Bh7 {[%clk 0:02:05]} 20. g3 {[%clk 0:01:16]}  Rfe8 {[%clk 0:01:53]} 21. Qh5 {[%clk 0:01:14]}  f6 {[%clk 0:01:46]} 22. Ng4 {[%clk 0:00:51]}  Bf8 {[%clk 0:00:52]} 23. Bxf6 {[%clk 0:00:40]}  Bf5 {[%clk 0:00:31]} 24. Bc3 {[%clk 0:00:24]}  Red8 {[%clk 0:00:19]} 25. Ne5 {[%clk 0:00:19]}  Be7 {[%clk 0:00:09]} 26. Qf7+ {[%clk 0:00:18]}  Kh7 {[%clk 0:00:07]} 27. Nd7 {[%clk 0:00:11]}  Rg8 {[%clk 0:00:04]} 28. Re5 {[%clk 0:00:07]}  Bd6 {[%clk 0:00:02]} 29. Rxf5 {[%clk 0:00:07]}  exf5 {[%clk 0:00:03]} 30. Qxf5+ {[%clk 0:00:07]}  Kh8 {[%clk 0:00:03]} 31. Qe6 {[%clk 0:00:06]}  Rge8 {[%clk 0:00:02]} 32. Qxh6+ {[%clk 0:00:06]}  Kg8 {[%clk 0:00:02]} 33. Qxg7# {[%clk 0:00:06]} 1-0


[Site "https://www.chess.com"]

[Event "Titled Tuesday Blitz December 06 Early 2022"]
[White "Bon, Michael"]
[Black "Danielyan, Vahe"]
[WhiteFideId "620696"]
[BlackFideId "13304828"]
[WhiteElo "2392"]
[BlackElo "2423"]
[Result "0-1"]
[Round "05"]
[TimeControl "180+1"]
[Date "2022.12.07"]
[WhiteClock "0:00:05"]
[BlackClock "0:01:40"]

1. e4 {[%clk 0:03:00]}  d6 {[%clk 0:02:56]} 2. d4 {[%clk 0:03:00]}  Nf6 {[%clk 0:02:57]} 3. Nc3 {[%clk 0:02:58]}  e5 {[%clk 0:02:57]} 4. Nf3 {[%clk 0:02:48]}  Nbd7 {[%clk 0:02:57]} 5. g4 {[%clk 0:02:48]}  Nxg4 {[%clk 0:02:54]} 6. Rg1 {[%clk 0:02:46]}  Ngf6 {[%clk 0:02:54]} 7. Bc4 {[%clk 0:02:34]}  exd4 {[%clk 0:02:49]} 8. Qxd4 {[%clk 0:02:24]}  c6 {[%clk 0:02:42]} 9. Bf4 {[%clk 0:02:09]}  Qb6 {[%clk 0:02:41]} 10. Qd2 {[%clk 0:01:57]}  Nc5 {[%clk 0:02:40]} 11. Ng5 {[%clk 0:01:16]}  Be6 {[%clk 0:02:39]} 12. Nxe6 {[%clk 0:01:16]}  Nxe6 {[%clk 0:02:40]} 13. Be3 {[%clk 0:01:12]}  Qb4 {[%clk 0:02:39]} 14. Bxe6 {[%clk 0:00:53]}  fxe6 {[%clk 0:02:39]} 15. e5 {[%clk 0:00:54]}  dxe5 {[%clk 0:02:33]} 16. O-O-O {[%clk 0:00:52]}  Nd5 {[%clk 0:02:33]} 17. h3 {[%clk 0:00:25]}  O-O-O {[%clk 0:02:31]} 18. Rg4 {[%clk 0:00:24]}  Qe7 {[%clk 0:02:05]} 19. Bg5 {[%clk 0:00:20]}  Nf6 {[%clk 0:02:05]} 20. Qe2 {[%clk 0:00:20]}  Rxd1+ {[%clk 0:02:05]} 21. Qxd1 {[%clk 0:00:18]}  Qd6 {[%clk 0:02:04]} 22. Qxd6 {[%clk 0:00:12]}  Bxd6 {[%clk 0:02:05]} 23. Ra4 {[%clk 0:00:11]}  a6 {[%clk 0:02:04]} 24. Ne4 {[%clk 0:00:11]}  Nxe4 {[%clk 0:02:03]} 25. Rxe4 {[%clk 0:00:12]}  Rf8 {[%clk 0:02:03]} 26. Be3 {[%clk 0:00:13]}  Kd7 {[%clk 0:02:01]} 27. Kd2 {[%clk 0:00:13]}  Rf5 {[%clk 0:02:00]} 28. Ke2 {[%clk 0:00:13]}  b5 {[%clk 0:01:59]} 29. f3 {[%clk 0:00:11]}  Be7 {[%clk 0:01:59]} 30. Kf2 {[%clk 0:00:11]}  Bg5 {[%clk 0:01:58]} 31. Bc5 {[%clk 0:00:10]}  Be7 {[%clk 0:01:53]} 32. Be3 {[%clk 0:00:09]}  g5 {[%clk 0:01:54]} 33. b3 {[%clk 0:00:09]}  h5 {[%clk 0:01:54]} 34. Kg3 {[%clk 0:00:09]}  c5 {[%clk 0:01:54]} 35. Bc1 {[%clk 0:00:08]}  Kc6 {[%clk 0:01:55]} 36. Bb2 {[%clk 0:00:08]}  Bd6 {[%clk 0:01:54]} 37. Kg2 {[%clk 0:00:08]}  Rf4 {[%clk 0:01:52]} 38. Kg3 {[%clk 0:00:09]}  Kd5 {[%clk 0:01:51]} 39. c4+ {[%clk 0:00:08]}  bxc4 {[%clk 0:01:50]} 40. bxc4+ {[%clk 0:00:09]}  Kc6 {[%clk 0:01:50]} 41. Kf2 {[%clk 0:00:09]}  Kb6 {[%clk 0:01:47]} 42. Ke3 {[%clk 0:00:08]}  Ka5 {[%clk 0:01:47]} 43. Bc3+ {[%clk 0:00:06]}  Ka4 {[%clk 0:01:47]} 44. Bxe5 {[%clk 0:00:05]}  Rxe4+ {[%clk 0:01:40]} 0-1


[Site "https://www.chess.com"]